[Event "4th Tata Steel India Blitz Open 2022"]
[Site "Kolkota"]
[Date "2022.12.03"]
[Round "7.5"]
[White "Gukesh D"]
[Black "Nakamura, Hikaru"]
[Result "1-0"]
[ECO "D37"]
[WhiteElo "2725"]
[BlackElo "2768"]
[Annotator "TA"]
[PlyCount "101"]
[EventDate "2022.11.29"]
[EventType "tourn"]
[EventCountry "IND"]
[SourceTitle "playchess.com"]
[Source "ChessBase"]
[SourceQuality "1"]
[TimeControl "180+2"]

{[%evp 21,101,37,80,84,83,77,74,35,142,135,104,49,85,92,89,33,45,43,39,29,57,62,53,14,17,28,30,52,184,168,414,398,542,0,403,394,384,402,601,584,912,775,1241,1207,1651,1595,29988,1313,1960,1706,2261,2182,2810,2691,2675,2481,2308,1674,29982,29983,29984,29984,29987,2763,1651,637,612,582,834,536,946,925,2199,1952,5527,5539,29983,29984,29984,29985,29981,1777]} 1. d4 {[%emt 0:00:02]} Nf6 {[%emt 0:00:01]} 2. c4 {[%emt 0:00:01]} e6 {[%emt 0:00:00]} 3. Nf3 {[%emt 0:00:02]} d5 {[%emt 0:00:01]} 4. Nc3 {[%emt 0:00:01]} Be7 {[%emt 0:00:01]} 5. cxd5 {[%emt 0:00:02]} exd5 {[%emt 0:00:02]} 6. Bf4 {[%emt 0:00:02]} O-O {[%emt 0:00:06]} 7. e3 {[%emt 0:00:02]} b6 {[%emt 0:00:02]} 8. Bd3 {[%emt 0:00:04]} c5 {[%emt 0:00:06]} 9. O-O {[%emt 0:00:03]} Bb7 {[%emt 0:00:01]} 10. Rc1 $1 {[%emt 0:00:06][%mdl 4] is currently scoring better than 10.Ne5.} a6 {[%emt 0:00:10]} 11. Ne5 {[%emt 0:00:04]} Nbd7 {[%emt 0:00:02]} 12. Qf3 {[%emt 0:00:05] D37: Queen's Gambit Declined: 5 Bf4.} Re8 {[%emt 0:00:10]} 13. Rfd1 {[%emt 0:00:10]} Ra7 {[%emt 0:01:07]} 14. g4 {[%emt 0:00:54] [#] White is much more active. White is better.} (14. Bf5 $5 {[%cal Re5d7]}) 14... c4 $146 {[%emt 0:00:00] Against g5} (14... g6 $14) ({Predecessor:} 14... g6 15. Be2 b5 16. Qh3 b4 17. Na4 Nxe5 18. dxe5 Nd7 19. Bf3 Qa5 20. b3 c4 {½-½ (35) Nogueiras Santiago,J (2545)-Speelman,J (2530) Taxco 1985}) 15. Bf5 $16 {[%emt 0:00:10]} Nf8 {[%emt 0:00:01]} 16. Bb1 {[%emt 0:01:03]} ({White should play} 16. h4 $16) 16... Qa8 {[%emt 0:00:31]} 17. g5 {[%emt 0:00:07][%cal Of4g3]} Ne4 {[%emt 0:00:00]} 18. Nxe4 {[%emt 0:00:03]} ({White should try} 18. Bxe4 $16 dxe4 19. Qg3 (19. Qh5 Bd5 $16)) 18... dxe4 $14 {[%emt 0:00:01]} 19. Qh5 {[%emt 0:00:02]} g6 $1 {[%emt 0:00:29]} 20. Qh4 {[%emt 0:00:07]} b5 {[%emt 0:00:02]} 21. Ng4 $1 $36 {[%emt 0:00:05][%mdl 2048] [#] Black must now prevent Nh6+. White has the initiative.} h5 {[%emt 0:00:13]} 22. Nh6+ {[%emt 0:00:04]} (22. Be5 $5) 22... Kh7 {[%emt 0:00:03]} 23. Nxf7 {[%emt 0:00:03][%cal Of2f3]} Bd5 {[%emt 0:00:05]} 24. Ne5 {[%emt 0:00:01][%cal Of2f3]} Nd7 {[%emt 0:00:01] [#] Prevents f3. White now steadily converts the win.} (24... Ne6 $14) 25. f3 $1 $18 {[%emt 0:00:04]} Nb6 $2 {[%emt 0:00:09]} (25... Nf8 26. Qh3 Kg7) 26. Bg3 {[%emt 0:00:03][%cal Rf3e4]} Qd8 {[%emt 0:00:04]} 27. Bf4 {[%emt 0:00:06]} ({Weaker is} 27. fxe4 Bxg5 28. Qh3 Bxe3+ 29. Bf2 Bxc1 30. exd5 Rg7 31. Qxh5+ (31. Rxc1 $2 {is the wrong capture.} Qg5+ 32. Bg3 Qxc1+ $19) 31... Kg8 32. Bxg6 Qxd5 33. Rxc1 Re6 $11) 27... Qa8 {[%emt 0:00:04]} 28. Rf1 {[%emt 0:00:06]} ({But not} 28. Bg3 Qd8 $18) 28... Bb4 {[%emt 0:00:05]} 29. Rf2 {[%emt 0:00:03]} Kg7 {[%emt 0:00:02]} (29... Nd7 $142 30. Bg3 Nxe5 31. Bxe5 Rxe5) 30. Rcf1 {[%emt 0:00:02]} Rf8 {[%emt 0:00:02]} 31. Bg3 {[%emt 0:00:03][%cal Oe5g6] Nxg6! is the strong threat.} exf3 {[%emt 0:00:05]} 32. Bxg6 {[%emt 0:00:03]} Re7 {[%emt 0:00:03]} 33. e4 {[%emt 0:00:04]} Bb7 {[%emt 0:00:03]} 34. Bf5 {[%emt 0:00:05]} (34. Qxh5 $142 Rh8 35. Qxf3 Qf8 36. Qf6+ Qxf6 37. gxf6+ Kg8 38. fxe7 Bxe7 39. Rf7) 34... Rh8 {[%emt 0:00:03]} 35. Ng6 {[%emt 0:00:01][%cal Be5g6,Bg6h8,Bh8f7][%mdl 32]} Rxe4 {[%emt 0:00:03]} 36. Bxe4 {[%emt 0:00:01][%cal Oh4f4] Qf4! would kill now.} Bxe4 {[%emt 0:00:01]} 37. Nxh8 {[%emt 0:00:01][%cal Oh4h5]} Nd7 {[%emt 0:00:05]} 38. g6 {[%emt 0:00:04][%cal Oh4h5] Intending Qxh5! and mate.} Qd5 {[%emt 0:00:00]} 39. Nf7 {[%emt 0:00:05]} Qxd4 {[%emt 0:00:01]} 40. Qxh5 {[%emt 0:00:02]} Bc5 {[%emt 0:00:02]} 41. Qh7+ {[%emt 0:00:04]} Kf8 {[%emt 0:00:02]} 42. g7+ {[%emt 0:00:02]} (42. Ng5 $142 Bd5 43. Qxd7 Kg8 44. Re1 Be7 45. Be5 Qxe5 46. Rxe5 Bf7 47. gxf7+ Kf8 48. Qxe7+ Kg7 49. f8=Q+ Kg6 50. Qh7#) 42... Qxg7 {[%emt 0:00:02]} 43. Qxg7+ {[%emt 0:00:01]} Kxg7 {[%emt 0:00:00]} 44. Ng5 {[%emt 0:00:01]} Bd5 {[%emt 0:00:02]} 45. Kh1 {[%emt 0:00:02] And now Rd2 would win.} b4 {[%emt 0:00:03]} 46. Rd2 {[%emt 0:00:04]} Ba8 {[%emt 0:00:05]} 47. Rxd7+ {[%emt 0:00:01]} Kg6 {[%emt 0:00:01]} 48. Nxf3 {[%emt 0:00:02] White threatens Kg2 and mate.} c3 {[%emt 0:00:00]} 49. bxc3 {[%emt 0:00:02] White mates.} bxc3 {[%emt 0:00:01]} 50. Rc7 {[%emt 0:00:00]} Bb4 {[%emt 0:00:01]} 51. Be5 {[%emt 0:00:02] Weighted Error Value: White=0.43/Black=0.82} (51. Kg1 $142 Be4 52. Ne5+ Kh5 53. Rc8 Kh6 54. Rf7 Bc5+ 55. Rxc5 c2 56. Ng4+ Kg6 57. Rf6+ Kh7 58. Rc7+ Kg8 59. Nh6+ Kh8 60. Rf8#) 1-0

[Event "4th Tata Steel India Blitz Open 2022"]
[Site "Kolkota"]
[Date "2022.12.03"]
[Round "8.2"]
[White "Gukesh D"]
[Black "Rameshbabu, Praggnanandhaa"]
[Result "1-0"]
[ECO "E68"]
[WhiteElo "2725"]
[BlackElo "2678"]
[Annotator "TA"]
[PlyCount "85"]
[EventDate "2022.11.29"]
[EventType "tourn"]
[EventCountry "IND"]
[SourceTitle "playchess.com"]
[Source "ChessBase"]
[SourceQuality "1"]
[TimeControl "180+2"]

{[%evp 15,85,34,40,41,53,45,58,34,31,29,59,61,65,56,73,53,58,0,0,0,0,-19,0,-143,-143,-136,-136,-128,-14,-71,-77,-88,-80,-121,-34,-112,-123,-103,-88,-167,0,-162,-152,-241,-226,-235,-237,-302,-306,-284,-260,-292,-319,-317,703,691,755,753,2025,905,862,844,5206,5435,4331,1460,29978,29978,29984,29985,29982,29983]} 1. Nf3 {[%emt 0:00:02]} Nf6 {[%emt 0:00:04]} 2. g3 {[%emt 0:00:01]} g6 {[%emt 0:00:04]} 3. Bg2 {[%emt 0:00:02]} Bg7 {[%emt 0:00:01]} 4. O-O {[%emt 0:00:02]} O-O {[%emt 0:00:01]} 5. c4 {[%emt 0:00:02]} d6 {[%emt 0:00:02]} 6. d4 {[%emt 0:00:01]} Nbd7 {[%emt 0:00:02]} 7. Nc3 {[%emt 0:00:01]} e5 {[%emt 0:00:00]} 8. e4 {[%emt 0:00:03]} b6 {[%emt 0:00:03]} 9. Re1 {[%emt 0:00:02] E68: King's Indian: Fianchetto: 6...Nbd7 7 0-0 e5 8 e4.} exd4 {[%emt 0:00:09]} 10. Nxd4 {[%emt 0:00:02]} Bb7 {[%emt 0:00:01] Inhibits Nc6.} 11. b3 {[%emt 0:00:05][%cal Bb2b3,Bb3b4][%mdl 32] White is slightly better.} Re8 {[%emt 0:00:04]} 12. Bb2 {[%emt 0:00:02]} Nc5 {[%emt 0:00:05]} 13. Qc2 {[%emt 0:00:01] [#]} c6 $146 {[%emt 0:00:03]} ({Predecessor:} 13... a5 14. Rad1 h5 15. h3 Re7 16. a3 Qe8 17. f3 d5 18. cxd5 Nxd5 19. Nxd5 Bxd5 {½-½ (63) Keymer,V (2558)-Le,Q (2709) Chess.com INT 2020}) 14. Rad1 {[%emt 0:00:02][%cal Oe4e5] White is more active.} Qc7 {[%emt 0:00:01]} 15. b4 {[%emt 0:00:13]} Ne6 {[%emt 0:00:17]} 16. Nf3 {[%emt 0:00:02]} ({Better is} 16. Nxe6 $14 Rxe6 17. Ne2) 16... Ng4 $11 {[%emt 0:00:19]} 17. Ne2 {[%emt 0:00:15]} Ne5 {[%emt 0:00:06]} 18. Nd2 {[%emt 0:00:24]} a5 {[%emt 0:00:39]} 19. Rb1 {[%emt 0:00:31]} (19. bxa5 $11 Rxa5 20. Bc3) 19... axb4 $17 {[%emt 0:00:17]} 20. f4 {[%emt 0:00:01]} Ng4 {[%emt 0:00:01]} (20... Rxa2 $6 21. fxe5 Bxe5 22. Nc1 $11 (22. Qb3 Rxb2 23. Rxb2 Nc5 $17)) 21. Bxg7 {[%emt 0:00:07]} Nxg7 {[%emt 0:00:01]} (21... Ne3 $17 22. Qb2 Nxg2 23. Kxg2 Nxg7 24. Qxb4 Rxa2) 22. Nd4 {[%emt 0:00:24]} (22. Bf3 $1 $11 Nf6 23. Rxb4) 22... c5 {[%emt 0:00:41]} 23. Nb5 {[%emt 0:00:02]} Qd7 {[%emt 0:00:01]} 24. Nf1 {[%emt 0:00:16]} Bc6 {[%emt 0:00:09]} (24... d5 $1 $17 {[%cal Rd5c4] Threatens to win with ...dxc4.} 25. e5 (25. exd5 Ba6 $15) 25... dxc4 26. Bxb7 Qxb7) 25. Rbd1 {[%emt 0:00:13]} (25. h3 $15 Nh6 26. Red1) 25... Bxb5 {[%emt 0:00:03]} 26. cxb5 {[%emt 0:00:01][%cal Oe4e5]} Qe6 $36 {[%emt 0:00:01][%mdl 2048] Prevents e5. Black is on the roll.} (26... Qxb5 $6 27. h3 Nh6 28. Qf2 $11) 27. Rd2 {[%emt 0:00:10]} (27. Re2 $17 {was worth a try.}) 27... Ra3 $2 {[%emt 0:00:05]} ({Black should play} 27... Nf5 $19 {aiming for ...Ra3.} 28. e5 Nd4) 28. Red1 $2 {[%emt 0:00:19]} (28. Qd1 $1 $11 {and White is okay.}) 28... Rd8 $1 $19 {[%emt 0:00:13]} 29. h3 {[%emt 0:00:10]} (29. Rd5 $17 {is a better defense.}) 29... Ne3 $1 {[%emt 0:00:03]} 30. Nxe3 {[%emt 0:00:03]} Rxe3 {[%emt 0:00:01]} 31. Rd3 Rxd3 32. Rxd3 {[%emt 0:00:19]} Ra8 33. e5 {[%emt 0:00:20]} Rxa2 {[%emt 0:00:12]} 34. Qb1 {[%emt 0:00:15] [#] Black must now prevent Bd5.} Ne8 $4 {[%emt 0:00:16][%mdl 8192]} (34... dxe5 35. Bd5 Qe7 36. Qxa2 exf4 {[#]} 37. Bxf7+ $1 {[%mdl 512]} (37. gxf4 Nf5 $16) 37... Kf8 38. Bb3 Qe1+ 39. Kg2 (39. Kh2 fxg3+ 40. Kg2 Nf5 $18) 39... Qe4+ 40. Rf3 $18) (34... Rxg2+ $1 $19 35. Kxg2 Nf5 36. exd6 Nxd6) 35. Bd5 $18 {[%emt 0:00:00]} Qf5 {[%emt 0:00:01]} 36. Bxa2 {[%emt 0:00:02]} Qxh3 {[%emt 0:00:02]} 37. Qf1 {[%emt 0:00:00]} (37. exd6 $142 Nxd6 38. Qe1 (38. Rxd6 Qxg3+ 39. Kh1 Qh3+ 40. Kg1 Qg3+ 41. Kh1 Qh3+ 42. Kg1 Qg3+ $11)) 37... Qd7 {[%emt 0:00:03]} 38. exd6 {[%emt 0:00:00]} Nxd6 {[%emt 0:00:03]} 39. Qd1 {[%emt 0:00:00]} Qh3 {[%emt 0:00:01]} 40. Qf3 {[%emt 0:00:00]} (40. Rxd6 Qxg3+ 41. Kf1 (41. Kh1 Qh3+ 42. Kg1 Qg3+ 43. Kh1 Qh3+ 44. Kg1 Qg3+ $16) 41... Qxf4+ 42. Kg2 Qg5+ 43. Kf2 Qh4+ 44. Ke3 Qg5+ 45. Kd3 c4+ 46. Bxc4 (46. Kxc4 Qc5+ 47. Kd3 Qxd6+ 48. Ke2 Qh2+ 49. Kf1 Qh1+ 50. Ke2 Qxd1+ 51. Kxd1 h5 $19) 46... Qf5+ 47. Kd2 Qf4+ 48. Kc2 Qxc4+ 49. Kb2 Qxb5 $18) (40. Qe1 $142 b3 41. Bxb3) 40... Nf5 {[%emt 0:00:03]} 41. Qd5 {[%emt 0:00:00] White mates.} Nh6 {[%emt 0:00:02]} 42. Qe5 {[%emt 0:00:00][%cal Rd3d8]} Qc8 {[%emt 0:00:03]} 43. Qf6 {[%emt 0:00:00] Weighted Error Value: White=0.40/Black=0.43} 1-0

[Event "4th Tata Steel India Blitz Open 2022"]
[Site "Kolkota"]
[Date "2022.12.04"]
[Round "10.1"]
[White "Maghsoodloo, Parham"]
[Black "Vidit, Santosh Gujrathi"]
[Result "1/2-1/2"]
[ECO "D45"]
[WhiteElo "2720"]
[BlackElo "2724"]
[Annotator "TA"]
[PlyCount "99"]
[EventDate "2022.11.29"]
[EventType "tourn"]
[EventCountry "IND"]
[SourceTitle "playchess.com"]
[Source "ChessBase"]
[SourceQuality "1"]
[TimeControl "180+2"]

{[%evp 11,99,2,0,-10,-10,-20,31,35,14,-11,-5,-21,0,0,-9,-8,-5,-6,0,0,0,-26,-31,-39,-24,-39,-16,-9,-5,-10,0,0,0,-21,0,-13,-27,-36,0,0,0,-39,-24,-86,-63,-51,-62,-61,-14,-29,0,0,0,-3,-12,-110,-79,-107,-79,-121,-128,-128,-128,-117,-125,-131,-14,-13,-14,-14,0,-14,0,-72,0,0,0,0,0,0,0,0,0,0,0,0,0,0,0,0]} 1. d4 {[%emt 0:00:01]} d5 {[%emt 0:00:01]} 2. c4 {[%emt 0:00:02]} c6 {[%emt 0:00:02]} 3. e3 {[%emt 0:00:07]} Nf6 {[%emt 0:00:02]} 4. Nc3 {[%emt 0:00:03]} e6 {[%emt 0:00:02]} 5. Qc2 {[%emt 0:00:09]} Nbd7 {[%emt 0:00:06]} 6. Nf3 {[%emt 0:00:20]} Bd6 {[%emt 0:00:03]} 7. g3 {[%emt 0:00:25] D45: Semi-Slav: 5 e3.} O-O {[%emt 0:00:26]} 8. Bg2 {[%emt 0:00:03] [#]} b6 $146 {[%emt 0:00:43]} (8... dxc4 $11 9. O-O e5) ({Predecessor:} 8... dxc4 9. O-O Qe7 10. a4 e5 11. Ne4 Nxe4 12. Qxe4 f5 13. Qc2 e4 14. Nd2 b5 {1-0 (35) Prohorov,O (2086)-Castillo Pena,P (1770) Chess.com INT 2020}) 9. O-O $14 {[%emt 0:00:03] White is slightly better.} Ba6 {[%emt 0:00:04]} 10. b3 {[%emt 0:00:05]} (10. e4 {with more complications.} dxe4 11. Nd2 e3 12. fxe3 Ng4 13. Nde4) 10... dxc4 {[%emt 0:00:10]} 11. Rd1 {[%emt 0:00:19][%cal Of3e5]} cxb3 {[%emt 0:00:12]} 12. axb3 {[%emt 0:00:04]} Bb7 {[%emt 0:00:01]} 13. e4 {[%emt 0:00:02][%cal Be3e4,Be4e5][%mdl 32] And now e5 would win.} (13. Ne5 {is interesting.} Nd5 14. Nc4 Nb4 15. Qe2) 13... Bb4 {[%emt 0:00:03]} 14. e5 {[%emt 0:00:26]} Bxc3 {[%emt 0:00:11]} (14... Nd5 {is more complex.} 15. Ng5 g6 16. Nge4 Qb8) 15. Qxc3 {[%emt 0:00:04]} Nd5 {[%emt 0:00:02]} 16. Qc2 {[%emt 0:00:01]} h6 {[%emt 0:00:09] Inhibits Ng5.} 17. Ba3 {[%emt 0:00:02]} c5 $1 {[%emt 0:00:14]} 18. Nd2 {[%emt 0:00:25][%cal Bf3d2,Bd2c4,Bc4d6][%mdl 32]} Rc8 {[%emt 0:00:30]} 19. Nc4 {[%emt 0:00:01]} Rc7 {[%emt 0:00:06]} 20. Qd2 {[%emt 0:00:04]} Qa8 {[%emt 0:00:04]} 21. Nd6 {[%emt 0:00:02]} Bc6 {[%emt 0:00:01]} 22. Rac1 {[%emt 0:00:05][%cal Rd4c5]} Rd8 {[%emt 0:00:10]} 23. h4 {[%emt 0:00:02]} Ne7 {[%emt 0:00:06] Pair of Knights!} 24. Bxc6 {[%emt 0:00:27]} Nxc6 {[%emt 0:00:01]} 25. Qf4 {[%emt 0:00:01]} Rf8 {[%emt 0:00:04]} 26. Bb2 {[%emt 0:00:13]} cxd4 {[%emt 0:00:03]} (26... Ne7 {feels hotter.} 27. Qg4 Nd5 28. Qe2 Rc6) 27. Bxd4 {[%emt 0:00:02]} (27. b4 $11 Ndxe5 28. b5 (28. Bxd4 $2 {loses.} Nxd4 29. Kh2 Nef3+ 30. Kh3 Ne2 $19)) 27... Nxd4 $17 {[%emt 0:00:02]} 28. Qxd4 {[%emt 0:00:02]} Rxc1 {[%emt 0:00:02]} 29. Rxc1 {[%emt 0:00:01]} Qf3 {[%emt 0:00:03]} (29... Nc5 $15 {should be considered.} 30. Rc3 a5) 30. Rc3 {[%emt 0:00:02]} (30. Rc7 {looks sharper.} Nc5 31. b4 Nb3 32. Qe3) 30... Qh5 {[%emt 0:00:04]} (30... Qe2 $5 {[%cal Rd7e5]} 31. Re3 Qa6 $15) 31. Re3 {[%emt 0:00:06]} Qg6 {[%emt 0:00:07]} 32. Kg2 {[%emt 0:00:04]} Qc2 {[%emt 0:00:02]} 33. b4 {[%emt 0:00:02]} (33. Rc3 $11 Qe2 34. Re3) 33... Qc6+ {[%emt 0:00:04]} 34. Kg1 {[%emt 0:00:02]} a5 {[%emt 0:00:03]} 35. bxa5 {[%emt 0:00:07]} bxa5 {[%emt 0:00:01]} 36. Rc3 {[%emt 0:00:02]} Qb6 {[%emt 0:00:03]} 37. Qxb6 Nxb6 {[%emt 0:00:01][%mdl 4096] Endgame KRN-KRN} 38. Rc7 {[%emt 0:00:04] [#]} a4 {[%emt 0:00:02]} ({Better is} 38... Ra8 $1 $17 {Hoping for ...a4.} 39. Nb5 Nd5) 39. Rb7 $1 $11 {[%emt 0:00:03]} (39. Ra7 $2 Ra8 40. Rxa8+ Nxa8 $19) 39... Nd5 {[%emt 0:00:05] ...Ra8 is the strong threat.} 40. Ra7 {[%emt 0:00:01] Inhibits Ra8.} Nc3 {[%emt 0:00:03]} 41. Kg2 {[%emt 0:00:03]} h5 {[%emt 0:00:02]} 42. f4 {[%emt 0:00:01] [#]} (42. Rc7 $11 {keeps the balance.} Nd5 43. Ra7) 42... g6 {[%emt 0:00:02]} ({Black should try} 42... Rb8 $1 $17) 43. Kf3 {[%emt 0:00:02] The position is equal.} Kg7 {[%emt 0:00:01]} 44. Ke3 {[%emt 0:00:02]} Nd5+ {[%emt 0:00:01]} 45. Kd4 {[%emt 0:00:01]} Nb6 {[%emt 0:00:04]} 46. Kc5 {[%emt 0:00:02]} Nd5 {[%emt 0:00:02]} 47. Rxa4 {[%emt 0:00:01]} Ne3 {[%emt 0:00:01]} 48. Ra3 {[%emt 0:00:08]} Nf5 {[%emt 0:00:01]} 49. Nxf5+ gxf5 {[%emt 0:00:01]} 50. Kd4 {Weighted Error Value: White=0.15 (very precise) /Black=0.14 (very precise)} 1/2-1/2

[Event "4th Tata Steel India Blitz Open 2022"]
[Site "Kolkota"]
[Date "2022.12.04"]
[Round "10.2"]
[White "Erigaisi Arjun"]
[Black "Abdusattorov, Nodirbek"]
[Result "0-1"]
[ECO "D00"]
[WhiteElo "2718"]
[BlackElo "2713"]
[Annotator "TA"]
[PlyCount "86"]
[EventDate "2022.11.29"]
[EventType "tourn"]
[EventCountry "IND"]
[SourceTitle "playchess.com"]
[Source "ChessBase"]
[SourceQuality "1"]
[TimeControl "180+2"]

{[%evp 9,86,-22,0,-18,5,0,0,7,9,5,47,-61,0,0,0,0,0,0,15,0,174,164,238,200,228,209,301,293,269,283,324,318,323,286,299,265,259,271,438,437,430,-519,-518,-494,-472,-465,-453,-404,0,0,8,8,227,8,633,609,609,504,603,603,679,-852,-845,-814,-803,-29984,-29985,-29986,-29987,-29990,-29976,-29976,-29973,-29994,-29995,-29995,0,-29991,-29992]} 1. d4 {[%emt 0:00:02]} d5 {[%emt 0:00:01]} 2. Nc3 {[%emt 0:00:02]} Bf5 {[%emt 0:00:11]} 3. Bf4 {[%emt 0:00:03]} e6 {[%emt 0:00:03]} 4. e3 {[%emt 0:00:02][%cal Be2e3,Be3e4][%mdl 32]} Bd6 {[%emt 0:00:03]} 5. Bd3 {[%emt 0:00:10]} Ne7 {[%emt 0:00:13]} 6. Nf3 {[%emt 0:00:09] D00: 1 d4 d5: Unusual lines.} O-O {[%emt 0:00:04]} 7. Bg3 {[%emt 0:00:09]} c5 {[%emt 0:00:13] [#]} 8. dxc5 $146 {[%emt 0:00:07] The position is equal.} ({Predecessor:} 8. Bh4 f6 9. Bxf5 Nxf5 10. Bg3 Nc6 11. dxc5 Bxc5 12. O-O Rc8 13. e4 Nxg3 14. hxg3 {0-1 (80) Saavedra Aiza,A (1300)-Mattes del Castillo,A (1687) Oruro 2022}) 8... Bxc5 {[%emt 0:00:23]} 9. e4 {[%emt 0:00:02]} Bg6 {[%emt 0:00:08]} 10. h4 {[%emt 0:00:28]} (10. exd5 $14 Nxd5 11. Bxg6 hxg6 12. Nxd5 exd5 13. O-O) 10... Nbc6 {[%emt 0:00:07]} (10... Bb4 $1 $15 11. Ng5 dxe4 12. Bxe4 Bxe4 13. Ngxe4 Nbc6) 11. h5 $11 {[%emt 0:00:10][%cal Bh4h5,Bh5h6][%mdl 32]} Bxe4 {[%emt 0:00:02]} 12. Bxe4 {[%emt 0:00:13]} dxe4 {[%emt 0:00:02]} 13. Nxe4 {[%emt 0:00:02]} (13. Qxd8 {simplifies} Rfxd8 14. Nxe4 Bb6 15. c3) 13... Qb6 {[%emt 0:00:47]} 14. h6 $36 {[%emt 0:00:49][%mdl 2048] Black is under pressure.} Qb4+ $2 {[%emt 0:00:01]} (14... Rfd8 $1 $11 15. Nfd2 g6) 15. Nfd2 $18 {[%emt 0:00:02] Hoping for hxg7.} g6 {[%emt 0:00:39]} (15... Rfd8 {was worth a try.}) 16. c3 {[%emt 0:00:13]} Qxb2 {[%emt 0:00:09][%cal Oa8d8]} 17. Nxc5 {[%emt 0:00:03]} Rfd8 {[%emt 0:00:04] Against Nd7} (17... Rad8 $142) 18. Rb1 {[%emt 0:00:16]} Qxa2 {[%emt 0:00:03][%cal Od8d2]} 19. Ncb3 {[%emt 0:00:24]} (19. Nxb7 $2 Rxd2 $1 {[%mdl 512]} 20. Qb3 a5 21. Qxa2 Rxa2 $19) 19... a5 {[%emt 0:00:17]} 20. Qc1 {[%emt 0:00:08]} a4 {[%emt 0:00:02]} 21. Ra1 {[%emt 0:00:02]} axb3 {[%emt 0:00:02]} 22. Rxa2 {[%emt 0:00:01]} bxa2 {[%emt 0:00:03]} 23. Qa1 {[%emt 0:00:02]} Nd5 $2 {[%emt 0:00:04]} (23... Ra4 24. Bh4 (24. c4 Nf5 $18) 24... Rda8 25. Bxe7 Nxe7) 24. c4 {[%emt 0:00:03][%csl Gh6][%cal Ra1g7]} Nc3 {[%emt 0:00:05][%cal Oc6d4] ...Nd4! is the strong threat.} 25. Bh4 $4 {[%emt 0:00:05][%mdl 8192] [#]} (25. Qxc3 $2 a1=Q+ 26. Qxa1 Rxa1+ $19) (25. O-O $1 $18 {was the only winning move.} Rd3 26. Qb2) 25... Nd4 $1 $19 {[%emt 0:00:01][%mdl 64] And now ...Nc2+ would win.} 26. O-O {[%emt 0:00:04]} Nde2+ {[%emt 0:00:01][%mdl 64] Discovered Attack. Pair of Knights!} 27. Kh1 {[%emt 0:00:01]} Rxd2 {[%emt 0:00:01]} 28. Bf6 {[%emt 0:00:01]} Rd3 {[%emt 0:00:03]} (28... Rc2 $19 29. Kh2 Ra5) 29. g3 $1 $11 {[%emt 0:00:01] aiming for Kg2.} e5 {[%emt 0:00:03]} 30. Bxe5 {[%emt 0:00:01] Black must now prevent Kg2.} Re8 $2 {[%emt 0:00:02]} (30... Rad8 $1 $11 {and Black is okay.} 31. Bxc3 Nxc3) 31. Bf6 $2 {[%emt 0:00:02]} (31. Bxc3 $1 $18 Nxc3 32. Kg2) 31... Rf3 $2 {[%emt 0:00:01][%mdl 8192]} (31... Re6 $11 32. Bxc3 Nxc3) 32. Bxc3 $1 $18 {[%emt 0:00:02]} Nxc3 {[%emt 0:00:01]} 33. Kg2 {[%emt 0:00:02]} ({And not} 33. Rc1 Re2 34. Rxc3 Rfxf2 $11) 33... Rd3 {[%emt 0:00:01]} 34. Rc1 {[%emt 0:00:01] Inhibits f6.} Ra8 {[%emt 0:00:01]} 35. Rc2 $4 {[%emt 0:00:02][%mdl 8192]} (35. Rxc3 $2 {loses.} Rxc3 36. c5 g5 $1 $19) (35. Qb2 $18) 35... Rd1 $19 {[%emt 0:00:03]} 36. Qxc3 {[%emt 0:00:01]} a1=Q {[%emt 0:00:01]} (36... a1=B {[#]} 37. Rb2 $1 {[%mdl 512]} f6 38. Qf3 $18) 37. Rb2 {[%emt 0:00:01]} Rg1+ {[%emt 0:00:02]} 38. Kh3 {[%emt 0:00:04]} Rh1+ {[%emt 0:00:02]} 39. Kg2 {[%emt 0:00:05]} Qf1+ {[%emt 0:00:05]} 40. Kf3 {[%emt 0:00:02]} Qd1+ {[%emt 0:00:01]} 41. Kg2 {[%emt 0:00:02]} Rg1+ {[%emt 0:00:03]} 42. Kh2 {[%emt 0:00:01]} Rh1+ {[%emt 0:00:03]} 43. Kg2 {[%emt 0:00:01][%csl Gh6][%cal Rc3g7]} Rxh6 {[%emt 0:00:01] Both players deserved the win here.   Weighted Error Value: White=0.49/Black=0.65} 0-1